Workbook

Sheet Year Trends
A1: Kulutrendit, otsikko
A2: Kuukausi | B2: Kuluerä 1 | C2: Kuluerä 2 | D2: Kuluerä 3 | E2: Kuluerä 4 | F2: Kuluerä 5
A3: Tammi | B3: =SUBTOTAL(109,Kuluerä11[Summa]) -> 100.00 | C3: =SUBTOTAL(109,Kuluerä21[Summa]) -> 200.00 | D3: =SUBTOTAL(109,Kuluerä31[Summa]) -> 300.00 | E3: =SUBTOTAL(109,Kuluerä41[Summa]) -> 400.00 | F3: =SUBTOTAL(109,Kuluerä51[Summa]) -> 500.00
A4: Helmi | B4: =SUBTOTAL(109,Kuluerä12[Summa]) -> 200.00 | C4: =SUBTOTAL(109,Kuluerä22[Summa]) -> 200.00 | D4: =SUBTOTAL(109,Kuluerä32[Summa]) -> 300.00 | E4: =SUBTOTAL(109,Kuluerä42[Summa]) -> 400.00 | F4: =SUBTOTAL(109,Kuluerä52[Summa]) -> 500.00
A5: Maalis | B5: =SUBTOTAL(109,Kuluerä13[Summa]) -> 300.00 | C5: =SUBTOTAL(109,Kuluerä23[Summa]) -> 200.00 | D5: =SUBTOTAL(109,Kuluerä33[Summa]) -> 300.00 | E5: =SUBTOTAL(109,Kuluerä43[Summa]) -> 400.00 | F5: =SUBTOTAL(109,Kuluerä53[Summa]) -> 500.00
A6: Huhti | B6: =SUBTOTAL(109,Kuluerä14[Summa]) -> 400.00 | C6: =SUBTOTAL(109,Kuluerä24[Summa]) -> 200.00 | D6: =SUBTOTAL(109,Kuluerä34[Summa]) -> 300.00 | E6: =SUBTOTAL(109,Kuluerä44[Summa]) -> 400.00 | F6: =SUBTOTAL(109,Kuluerä54[Summa]) -> 500.00
A7: Touko | B7: =SUBTOTAL(109,Kuluerä15[Summa]) -> 500.00 | C7: =SUBTOTAL(109,Kuluerä25[Summa]) -> 200.00 | D7: =SUBTOTAL(109,Kuluerä35[Summa]) -> 300.00 | E7: =SUBTOTAL(109,Kuluerä45[Summa]) -> 400.00 | F7: =SUBTOTAL(109,Kuluerä55[Summa]) -> 500.00
A8: Kesä | B8: =SUBTOTAL(109,Kuluerä16[Summa]) -> 600.00 | C8: =SUBTOTAL(109,Kuluerä26[Summa]) -> 200.00 | D8: =SUBTOTAL(109,Kuluerä36[Summa]) -> 300.00 | E8: =SUBTOTAL(109,Kuluerä46[Summa]) -> 400.00 | F8: =SUBTOTAL(109,Kuluerä56[Summa]) -> 500.00
A9: Heinä | B9: =SUBTOTAL(109,Kuluerä17[Summa]) -> 700.00 | C9: =SUBTOTAL(109,Kuluerä27[Summa]) -> 200.00 | D9: =SUBTOTAL(109,Kuluerä37[Summa]) -> 300.00 | E9: =SUBTOTAL(109,Kuluerä47[Summa]) -> 400.00 | F9: =SUBTOTAL(109,Kuluerä57[Summa]) -> 500.00
A10: Elo | B10: =SUBTOTAL(109,Kuluerä18[Summa]) -> 800.00 | C10: =SUBTOTAL(109,Kuluerä28[Summa]) -> 200.00 | D10: =SUBTOTAL(109,Kuluerä38[Summa]) -> 300.00 | E10: =SUBTOTAL(109,Kuluerä48[Summa]) -> 400.00 | F10: =SUBTOTAL(109,Kuluerä58[Summa]) -> 500.00
A11: Syys | B11: =SUBTOTAL(109,Kuluerä19[Summa]) -> 900.00 | C11: =SUBTOTAL(109,Kuluerä29[Summa]) -> 200.00 | D11: =SUBTOTAL(109,Kuluerä39[Summa]) -> 300.00 | E11: =SUBTOTAL(109,Kuluerä49[Summa]) -> 400.00 | F11: =SUBTOTAL(109,Kuluerä59[Summa]) -> 500.00
A12: Loka | B12: =SUBTOTAL(109,Kuluerä110[Summa]) -> 1,000.00 | C12: =SUBTOTAL(109,Kuluerä210[Summa]) -> 200.00 | D12: =SUBTOTAL(109,Kuluerä310[Summa]) -> 300.00 | E12: =SUBTOTAL(109,Kuluerä410[Summa]) -> 400.00 | F12: =SUBTOTAL(109,Kuluerä510[Summa]) -> 500.00
A13: Marras | B13: =SUBTOTAL(109,Kuluerä111[Summa]) -> 1,100.00 | C13: =SUBTOTAL(109,Kuluerä211[Summa]) -> 200.00 | D13: =SUBTOTAL(109,Kuluerä311[Summa]) -> 300.00 | E13: =SUBTOTAL(109,Kuluerä411[Summa]) -> 400.00 | F13: =SUBTOTAL(109,Kuluerä511[Summa]) -> 500.00
A14: Joulu | B14: =SUBTOTAL(109,Kuluerä112[Summa]) -> 1,200.00 | C14: =SUBTOTAL(109,Kuluerä212[Summa]) -> 200.00 | D14: =SUBTOTAL(109,Kuluerä312[Summa]) -> 300.00 | E14: =SUBTOTAL(109,Kuluerä412[Summa]) -> 400.00 | F14: =SUBTOTAL(109,Kuluerä512[Summa]) -> 500.00
A15: Yhteensä | B15: =SUM(B3:B14) -> 7,800.00 | C15: =SUM(C3:C14) -> 2,400.00 | D15: =SUM(D3:D14) -> 3,600.00 | E15: =SUM(E3:E14) -> 4,800.00 | F15: =SUM(F3:F14) -> 6,000.00
A16: Trendit

Sheet Tammi
A1: Tammikuun kulut
C3: YHTEENSÄ | D3: =SUM(D10,D17,D24,D30,D36) -> 1,500.00
A4: Kuluerä 1
A5: Pvm. | B5: Tilaus | C5: Toimittaja/kuvaus | D5: Summa
A6: 2010-01-08 | C6: Esimerkki 1 | D6: 100.00
A10: Välisumma | D10: =SUBTOTAL(109,Kuluerä11[Summa]) -> 100.00
A11: x
A12: Kuluerä 2
A13: Pvm. | B13: Tilaus | C13: Kuvaus | D13: Summa
A14: 2010-01-04 | C14: Esimerkki 2 | D14: 200.00
A17: Välisumma | D17: =SUBTOTAL(109,Kuluerä21[Summa]) -> 200.00
A18: x
A19: Kuluerä 3
A20: Pvm. | B20: Tilaus | C20: Toimittaja/kuvaus | D20: Summa
A21: 2010-01-02 | C21: Esimerkki 3 | D21: 300.00
A24: Välisumma | D24: =SUBTOTAL(109,Kuluerä31[Summa]) -> 300.00
A25: x
A26: Kuluerä 4
A27: Pvm. | B27: Tilaus | C27: Toimittaja/kuvaus | D27: Summa
A28: 2010-01-10 | C28: Esimerkki 4 | D28: 400.00
A30: Välisumma | D30: =SUBTOTAL(109,Kuluerä41[Summa]) -> 400.00
A31: s
A32: Kuluerä 5
A33: Pvm. | B33: Tilaus | C33: Toimittaja/kuvaus | D33: Summa
A34: 2010-01-25 | C34: Esimerkki 5 | D34: 500.00
A36: Välisumma | D36: =SUBTOTAL(109,Kuluerä51[Summa]) -> 500.00

Sheet Helmi
A1: Helmikuun kulut
C3: YHTEENSÄ | D3: =SUM(D10,D17,D24,D30,D36) -> 1,600.00
A4: Kuluerä 1
A5: Pvm. | B5: Tilaus | C5: Toimittaja/kuvaus | D5: Summa
A6: 2010-02-08 | C6: Esimerkki 1 | D6: 200.00
A10: Välisumma | D10: =SUBTOTAL(109,Kuluerä12[Summa]) -> 200.00
A11: x
A12: Kuluerä 2
A13: Pvm. | B13: Tilaus | C13: Kuvaus | D13: Summa
A14: 2010-02-04 | C14: Esimerkki 2 | D14: 200.00
A17: Välisumma | D17: =SUBTOTAL(109,Kuluerä22[Summa]) -> 200.00
A18: x
A19: Kuluerä 3
A20: Pvm. | B20: Tilaus | C20: Toimittaja/kuvaus | D20: Summa
A21: 2010-02-02 | C21: Esimerkki 3 | D21: 300.00
A24: Välisumma | D24: =SUBTOTAL(109,Kuluerä32[Summa]) -> 300.00
A25: x
A26: Kuluerä 4
A27: Pvm. | B27: Tilaus | C27: Toimittaja/kuvaus | D27: Summa
A28: 2010-02-10 | C28: Esimerkki 4 | D28: 400.00
A30: Välisumma | D30: =SUBTOTAL(109,Kuluerä42[Summa]) -> 400.00
A31: s
A32: Kuluerä 5
A33: Pvm. | B33: Tilaus | C33: Toimittaja/kuvaus | D33: Summa
A34: 2010-02-25 | C34: Esimerkki 5 | D34: 500.00
A36: Välisumma | D36: =SUBTOTAL(109,Kuluerä52[Summa]) -> 500.00

Sheet Maalis
A1: Maaliskuun kulut
C3: YHTEENSÄ | D3: =SUM(D10,D17,D24,D30,D36) -> 1,700.00
A4: Kuluerä 1
A5: Pvm. | B5: Tilaus | C5: Toimittaja/kuvaus | D5: Summa
A6: 2010-03-08 | C6: Esimerkki 1 | D6: 300.00
A10: Välisumma | D10: =SUBTOTAL(109,Kuluerä13[Summa]) -> 300.00
A11: x
A12: Kuluerä 2
A13: Pvm. | B13: Tilaus | C13: Kuvaus | D13: Summa
A14: 2010-03-04 | C14: Esimerkki 2 | D14: 200.00
A17: Välisumma | D17: =SUBTOTAL(109,Kuluerä23[Summa]) -> 200.00
A18: x
A19: Kuluerä 3
A20: Pvm. | B20: Tilaus | C20: Toimittaja/kuvaus | D20: Summa
A21: 2010-03-02 | C21: Esimerkki 3 | D21: 300.00
A24: Välisumma | D24: =SUBTOTAL(109,Kuluerä33[Summa]) -> 300.00
A25: x
A26: Kuluerä 4
A27: Pvm. | B27: Tilaus | C27: Toimittaja/kuvaus | D27: Summa
A28: 2010-03-10 | C28: Esimerkki 4 | D28: 400.00
A30: Välisumma | D30: =SUBTOTAL(109,Kuluerä43[Summa]) -> 400.00
A31: s
A32: Kuluerä 5
A33: Pvm. | B33: Tilaus | C33: Toimittaja/kuvaus | D33: Summa
A34: 2010-03-25 | C34: Esimerkki 5 | D34: 500.00
A36: Välisumma | D36: =SUBTOTAL(109,Kuluerä53[Summa]) -> 500.00

Sheet Huhti
A1: Huhtikuun kulut
C3: YHTEENSÄ | D3: =SUM(D10,D17,D24,D30,D36) -> 1,800.00
A4: Kuluerä 1
A5: Pvm. | B5: Tilaus | C5: Toimittaja/kuvaus | D5: Summa
A6: 2010-04-08 | C6: Esimerkki 1 | D6: 400.00
A10: Välisumma | D10: =SUBTOTAL(109,Kuluerä14[Summa]) -> 400.00
A11: x
A12: Kuluerä 2
A13: Pvm. | B13: Tilaus | C13: Kuvaus | D13: Summa
A14: 2010-04-04 | C14: Esimerkki 2 | D14: 200.00
A17: Välisumma | D17: =SUBTOTAL(109,Kuluerä24[Summa]) -> 200.00
A19: Kuluerä 3
A20: Pvm. | B20: Tilaus | C20: Toimittaja/kuvaus | D20: Summa
A21: 2010-04-02 | C21: Esimerkki 3 | D21: 300.00
A24: Välisumma | D24: =SUBTOTAL(109,Kuluerä34[Summa]) -> 300.00
A25: x
A26: Kuluerä 4
A27: Pvm. | B27: Tilaus | C27: Toimittaja/kuvaus | D27: Summa
A28: 2010-04-10 | C28: Esimerkki 4 | D28: 400.00
A30: Välisumma | D30: =SUBTOTAL(109,Kuluerä44[Summa]) -> 400.00
A31: s
A32: Kuluerä 5
A33: Pvm. | B33: Tilaus | C33: Toimittaja/kuvaus | D33: Summa
A34: 2010-04-25 | C34: Esimerkki 5 | D34: 500.00
A36: Välisumma | D36: =SUBTOTAL(109,Kuluerä54[Summa]) -> 500.00

Sheet Touko
A1: Toukokuun kulut
C3: YHTEENSÄ | D3: =SUM(D10,D17,D24,D30,D36) -> 1,900.00
A4: Kuluerä 1
A5: Pvm. | B5: Tilaus | C5: Toimittaja/kuvaus | D5: Summa
A6: 2010-05-08 | C6: Esimerkki 1 | D6: 500.00
A10: Välisumma | D10: =SUBTOTAL(109,Kuluerä15[Summa]) -> 500.00
A11: x
A12: Kuluerä 2
A13: Pvm. | B13: Tilaus | C13: Kuvaus | D13: Summa
A14: 2010-05-04 | C14: Esimerkki 2 | D14: 200.00
A17: Välisumma | D17: =SUBTOTAL(109,Kuluerä25[Summa]) -> 200.00
A18: x
A19: Kuluerä 3
A20: Pvm. | B20: Tilaus | C20: Toimittaja/kuvaus | D20: Summa
A21: 2010-05-02 | C21: Esimerkki 3 | D21: 300.00
A24: Välisumma | D24: =SUBTOTAL(109,Kuluerä35[Summa]) -> 300.00
A25: x
A26: Kuluerä 4
A27: Pvm. | B27: Tilaus | C27: Toimittaja/kuvaus | D27: Summa
A28: 2010-05-10 | C28: Esimerkki 4 | D28: 400.00
A30: Välisumma | D30: =SUBTOTAL(109,Kuluerä45[Summa]) -> 400.00
A31: s
A32: Kuluerä 5
A33: Pvm. | B33: Tilaus | C33: Toimittaja/kuvaus | D33: Summa
A34: 2010-05-25 | C34: Esimerkki 5 | D34: 500.00
A36: Välisumma | D36: =SUBTOTAL(109,Kuluerä55[Summa]) -> 500.00

Sheet Kesä
A1: Kesäkuun kulut
C3: YHTEENSÄ | D3: =SUM(D10,D17,D24,D30,D36) -> 2,000.00
A4: Kuluerä 1
A5: Pvm. | B5: Tilaus | C5: Toimittaja/kuvaus | D5: Summa
A6: 2010-06-08 | C6: Esimerkki 1 | D6: 600.00
A10: Välisumma | D10: =SUBTOTAL(109,Kuluerä16[Summa]) -> 600.00
A11: x
A12: Kuluerä 2
A13: Pvm. | B13: Tilaus | C13: Kuvaus | D13: Summa
A14: 2010-06-04 | C14: Esimerkki 2 | D14: 200.00
A17: Välisumma | D17: =SUBTOTAL(109,Kuluerä26[Summa]) -> 200.00
A18: x
A19: Kuluerä 3
A20: Pvm. | B20: Tilaus | C20: Toimittaja/kuvaus | D20: Summa
A21: 2010-06-02 | C21: Esimerkki 3 | D21: 300.00
A24: Välisumma | D24: =SUBTOTAL(109,Kuluerä36[Summa]) -> 300.00
A25: x
A26: Kuluerä 4
A27: Pvm. | B27: Tilaus | C27: Toimittaja/kuvaus | D27: Summa
A28: 2010-06-10 | C28: Esimerkki 4 | D28: 400.00
A30: Välisumma | D30: =SUBTOTAL(109,Kuluerä46[Summa]) -> 400.00
A31: s
A32: Kuluerä 5
A33: Pvm. | B33: Tilaus | C33: Toimittaja/kuvaus | D33: Summa
A34: 2010-06-25 | C34: Esimerkki 5 | D34: 500.00
A36: Välisumma | D36: =SUBTOTAL(109,Kuluerä56[Summa]) -> 500.00

Sheet Heinä
A1: Heinäkuun kulut
C3: YHTEENSÄ | D3: =SUM(D10,D17,D24,D30,D36) -> 2,100.00
A4: Kuluerä 1
A5: Pvm. | B5: Tilaus | C5: Toimittaja/kuvaus | D5: Summa
A6: 2010-07-08 | C6: Esimerkki 1 | D6: 700.00
A10: Välisumma | D10: =SUBTOTAL(109,Kuluerä17[Summa]) -> 700.00
A11: x
A12: Kuluerä 2
A13: Pvm. | B13: Tilaus | C13: Kuvaus | D13: Summa
A14: 2010-07-04 | C14: Esimerkki 2 | D14: 200.00
A17: Välisumma | D17: =SUBTOTAL(109,Kuluerä27[Summa]) -> 200.00
A18: x
A19: Kuluerä 3
A20: Pvm. | B20: Tilaus | C20: Toimittaja/kuvaus | D20: Summa
A21: 2010-07-02 | C21: Esimerkki 3 | D21: 300.00
A24: Välisumma | D24: =SUBTOTAL(109,Kuluerä37[Summa]) -> 300.00
A25: x
A26: Kuluerä 4
A27: Pvm. | B27: Tilaus | C27: Toimittaja/kuvaus | D27: Summa
A28: 2010-07-10 | C28: Esimerkki 4 | D28: 400.00
A30: Välisumma | D30: =SUBTOTAL(109,Kuluerä47[Summa]) -> 400.00
A31: s
A32: Kuluerä 5
A33: Pvm. | B33: Tilaus | C33: Toimittaja/kuvaus | D33: Summa
A34: 2010-07-25 | C34: Esimerkki 5 | D34: 500.00
A36: Välisumma | D36: =SUBTOTAL(109,Kuluerä57[Summa]) -> 500.00

Sheet Elo
A1: Elokuun kulut
C3: YHTEENSÄ | D3: =SUM(D10,D17,D24,D30,D36) -> 2,200.00
A4: Kuluerä 1
A5: Pvm. | B5: Tilaus | C5: Toimittaja/kuvaus | D5: Summa
A6: 2010-08-08 | C6: Esimerkki 1 | D6: 800.00
A10: Välisumma | D10: =SUBTOTAL(109,Kuluerä18[Summa]) -> 800.00
A11: x
A12: Kuluerä 2
A13: Pvm. | B13: Tilaus | C13: Kuvaus | D13: Summa
A14: 2010-08-04 | C14: Esimerkki 2 | D14: 200.00
A17: Välisumma | D17: =SUBTOTAL(109,Kuluerä28[Summa]) -> 200.00
A18: x
A19: Kuluerä 3
A20: Pvm. | B20: Tilaus | C20: Toimittaja/kuvaus | D20: Summa
A21: 2010-08-02 | C21: Esimerkki 3 | D21: 300.00
A24: Välisumma | D24: =SUBTOTAL(109,Kuluerä38[Summa]) -> 300.00
A25: x
A26: Kuluerä 4
A27: Pvm. | B27: Tilaus | C27: Toimittaja/kuvaus | D27: Summa
A28: 2010-08-10 | C28: Esimerkki 4 | D28: 400.00
A30: Välisumma | D30: =SUBTOTAL(109,Kuluerä48[Summa]) -> 400.00
A31: s
A32: Kuluerä 5
A33: Pvm. | B33: Tilaus | C33: Toimittaja/kuvaus | D33: Summa
A34: 2010-08-25 | C34: Esimerkki 5 | D34: 500.00
A36: Välisumma | D36: =SUBTOTAL(109,Kuluerä58[Summa]) -> 500.00

Sheet Syys
A1: Syyskuun kulut
C3: YHTEENSÄ | D3: =SUM(D10,D17,D24,D30,D36) -> 2,300.00
A4: Kuluerä 1
A5: Pvm. | B5: Tilaus | C5: Toimittaja/kuvaus | D5: Summa
A6: 2010-09-08 | C6: Esimerkki 1 | D6: 900.00
A10: Välisumma | D10: =SUBTOTAL(109,Kuluerä19[Summa]) -> 900.00
A11: x
A12: Kuluerä 2
A13: Pvm. | B13: Tilaus | C13: Kuvaus | D13: Summa
A14: 2010-09-04 | C14: Esimerkki 2 | D14: 200.00
A17: Välisumma | D17: =SUBTOTAL(109,Kuluerä29[Summa]) -> 200.00
A18: x
A19: Kuluerä 3
A20: Pvm. | B20: Tilaus | C20: Toimittaja/kuvaus | D20: Summa
A21: 2010-09-02 | C21: Esimerkki 3 | D21: 300.00
A24: Välisumma | D24: =SUBTOTAL(109,Kuluerä39[Summa]) -> 300.00
A25: x
A26: Kuluerä 4
A27: Pvm. | B27: Tilaus | C27: Toimittaja/kuvaus | D27: Summa
A28: 2010-09-10 | C28: Esimerkki 4 | D28: 400.00
A30: Välisumma | D30: =SUBTOTAL(109,Kuluerä49[Summa]) -> 400.00
A31: s
A32: Kuluerä 5
A33: Pvm. | B33: Tilaus | C33: Toimittaja/kuvaus | D33: Summa
A34: 2010-09-25 | C34: Esimerkki 5 | D34: 500.00
A36: Välisumma | D36: =SUBTOTAL(109,Kuluerä59[Summa]) -> 500.00

Sheet Loka
A1: Lokakuun kulut
C3: YHTEENSÄ | D3: =SUM(D10,D17,D24,D30,D36) -> 2,400.00
A4: Kuluerä 1
A5: Pvm. | B5: Tilaus | C5: Toimittaja/kuvaus | D5: Summa
A6: 2010-10-08 | C6: Esimerkki 1 | D6: 1,000.00
A10: Välisumma | D10: =SUBTOTAL(109,Kuluerä110[Summa]) -> 1,000.00
A11: x
A12: Kuluerä 2
A13: Pvm. | B13: Tilaus | C13: Kuvaus | D13: Summa
A14: 2010-10-04 | C14: Esimerkki 2 | D14: 200.00
A17: Välisumma | D17: =SUBTOTAL(109,Kuluerä210[Summa]) -> 200.00
A18: x
A19: Kuluerä 3
A20: Pvm. | B20: Tilaus | C20: Toimittaja/kuvaus | D20: Summa
A21: 2010-10-02 | C21: Esimerkki 3 | D21: 300.00
A24: Välisumma | D24: =SUBTOTAL(109,Kuluerä310[Summa]) -> 300.00
A25: x
A26: Kuluerä 4
A27: Pvm. | B27: Tilaus | C27: Toimittaja/kuvaus | D27: Summa
A28: 2010-10-10 | C28: Esimerkki 4 | D28: 400.00
A30: Välisumma | D30: =SUBTOTAL(109,Kuluerä410[Summa]) -> 400.00
A31: s
A32: Kuluerä 5
A33: Pvm. | B33: Tilaus | C33: Toimittaja/kuvaus | D33: Summa
A34: 2010-10-25 | C34: Esimerkki 5 | D34: 500.00
A36: Välisumma | D36: =SUBTOTAL(109,Kuluerä510[Summa]) -> 500.00

Sheet Marras
A1: Marraskuun kulut
C3: YHTEENSÄ | D3: =SUM(D10,D17,D24,D30,D36) -> 2,500.00
A4: Kuluerä 1
A5: Pvm. | B5: Tilaus | C5: Toimittaja/kuvaus | D5: Summa
A6: 2010-11-08 | C6: Esimerkki 1 | D6: 1,100.00
A10: Välisumma | D10: =SUBTOTAL(109,Kuluerä111[Summa]) -> 1,100.00
A11: x
A12: Kuluerä 2
A13: Pvm. | B13: Tilaus | C13: Kuvaus | D13: Summa
A14: 2010-11-04 | C14: Esimerkki 2 | D14: 200.00
A17: Välisumma | D17: =SUBTOTAL(109,Kuluerä211[Summa]) -> 200.00
A18: x
A19: Kuluerä 3
A20: Pvm. | B20: Tilaus | C20: Toimittaja/kuvaus | D20: Summa
A21: 2010-11-02 | C21: Esimerkki 3 | D21: 300.00
A24: Välisumma | D24: =SUBTOTAL(109,Kuluerä311[Summa]) -> 300.00
A25: x
A26: Kuluerä 4
A27: Pvm. | B27: Tilaus | C27: Toimittaja/kuvaus | D27: Summa
A28: 2010-11-10 | C28: Esimerkki 4 | D28: 400.00
A30: Välisumma | D30: =SUBTOTAL(109,Kuluerä411[Summa]) -> 400.00
A31: s
A32: Kuluerä 5
A33: Pvm. | B33: Tilaus | C33: Toimittaja/kuvaus | D33: Summa
A34: 2010-11-25 | C34: Esimerkki 5 | D34: 500.00
A36: Välisumma | D36: =SUBTOTAL(109,Kuluerä511[Summa]) -> 500.00

Sheet Joulu
A1: Joulukuun kulut
C3: YHTEENSÄ | D3: =SUM(D10,D17,D24,D30,D36) -> 2,600.00
A4: Kuluerä 1
A5: Pvm. | B5: Tilaus | C5: Toimittaja/kuvaus | D5: Summa
A6: 2010-12-08 | C6: Esimerkki 1 | D6: 1,200.00
A10: Välisumma | D10: =SUBTOTAL(109,Kuluerä112[Summa]) -> 1,200.00
A11: x
A12: Kuluerä 2
A13: Pvm. | B13: Tilaus | C13: Kuvaus | D13: Summa
A14: 2010-12-04 | C14: Esimerkki 2 | D14: 200.00
A17: Välisumma | D17: =SUBTOTAL(109,Kuluerä212[Summa]) -> 200.00
A18: x
A19: Kuluerä 3
A20: Pvm. | B20: Tilaus | C20: Toimittaja/kuvaus | D20: Summa
A21: 2010-12-02 | C21: Esimerkki 3 | D21: 300.00
A24: Välisumma | D24: =SUBTOTAL(109,Kuluerä312[Summa]) -> 300.00
A25: x
A26: Kuluerä 4
A27: Pvm. | B27: Tilaus | C27: Toimittaja/kuvaus | D27: Summa
A28: 2010-12-10 | C28: Esimerkki 4 | D28: 400.00
A30: Välisumma | D30: =SUBTOTAL(109,Kuluerä412[Summa]) -> 400.00
A31: s
A32: Kuluerä 5
A33: Pvm. | B33: Tilaus | C33: Toimittaja/kuvaus | D33: Summa
A34: 2010-12-25 | C34: Esimerkki 5 | D34: 500.00
A36: Välisumma | D36: =SUBTOTAL(109,Kuluerä512[Summa]) -> 500.00
